[Event "Early-Titled-Tuesday-Blitz-March-05-2024"]
[Site "Chess.com"]
[Date "2024.03.05"]
[Round "3"]
[White "Kielinkei"]
[Black "Eloist"]
[Result "0-1"]
[WhiteElo "2596"]
[BlackElo "2453"]
[TimeControl "180+1"]
[EndTime "8:32:05 PST"]
[Termination "Eloist won on time"]

1. c4 {[%clk 0:03:00.9]} 1... e5 {[%clk 0:02:58.8]} 2. g3 {[%clk 0:03:00.8]}
2... Nf6 {[%clk 0:02:58.5]} 3. Bg2 {[%clk 0:03:01.1]} 3... c6 {[%clk 0:02:59]}
4. Nf3 {[%clk 0:03:00.7]} 4... e4 {[%clk 0:02:58.7]} 5. Nd4 {[%clk 0:03:01.3]}
5... d5 {[%clk 0:02:58.9]} 6. d3 {[%clk 0:03:00.5]} 6... Bb4+ {[%clk 0:02:57.5]}
7. Bd2 {[%clk 0:02:58.1]} 7... Bc5 {[%clk 0:02:48.9]} 8. Nb3 {[%clk 0:02:52.4]}
8... Be7 {[%clk 0:02:45.7]} 9. cxd5 {[%clk 0:02:50.2]} 9... cxd5 {[%clk
0:02:42.3]} 10. O-O {[%clk 0:02:49.6]} 10... O-O {[%clk 0:02:39.2]} 11. Nc3
{[%clk 0:02:49.6]} 11... exd3 {[%clk 0:02:36.3]} 12. exd3 {[%clk 0:02:50.5]}
12... Bg4 {[%clk 0:02:33.7]} 13. Qc2 {[%clk 0:02:39.3]} 13... Nc6 {[%clk
0:02:26.7]} 14. Rac1 {[%clk 0:02:20.8]} 14... Nb4 {[%clk 0:02:17.6]} 15. Qb1
{[%clk 0:02:19.5]} 15... Bf5 {[%clk 0:02:17]} 16. Qa1 {[%clk 0:02:00.4]} 16...
Bxd3 {[%clk 0:02:13.4]} 17. Rfe1 {[%clk 0:02:00.6]} 17... Nc2 {[%clk 0:02:10.6]}
18. Rxc2 {[%clk 0:02:01.1]} 18... Bxc2 {[%clk 0:02:10.7]} 19. Nd4 {[%clk
0:02:01.9]} 19... Bg6 {[%clk 0:02:06.2]} 20. b3 {[%clk 0:02:00.8]} 20... Bc5
{[%clk 0:02:02.8]} 21. Na4 {[%clk 0:01:57.1]} 21... Be7 {[%clk 0:01:43.6]} 22.
Bc3 {[%clk 0:01:50.3]} 22... Ne4 {[%clk 0:01:40.4]} 23. Bb2 {[%clk 0:01:43.3]}
23... a6 {[%clk 0:01:24.1]} 24. Nc3 {[%clk 0:01:41.9]} 24... Bb4 {[%clk
0:01:21]} 25. Re3 {[%clk 0:01:21.7]} 25... Bxc3 {[%clk 0:01:10.1]} 26. Bxc3
{[%clk 0:01:22.6]} 26... Nxc3 {[%clk 0:01:07.7]} 27. Qxc3 {[%clk 0:01:23.5]}
27... Rc8 {[%clk 0:01:06.5]} 28. Qb2 {[%clk 0:01:22.5]} 28... Re8 {[%clk
0:01:02.3]} 29. Qd2 {[%clk 0:01:11]} 29... Rxe3 {[%clk 0:00:45.7]} 30. Qxe3
{[%clk 0:01:11.9]} 30... Qd7 {[%clk 0:00:44.6]} 31. h4 {[%clk 0:01:07.5]} 31...
Re8 {[%clk 0:00:43.4]} 32. Qg5 {[%clk 0:01:05]} 32... h6 {[%clk 0:00:36.3]} 33.
Qf4 {[%clk 0:01:04.3]} 33... Re1+ {[%clk 0:00:32]} 34. Kh2 {[%clk 0:01:04.4]}
34... Be4 {[%clk 0:00:29.6]} 35. f3 {[%clk 0:01:00.4]} 35... Bg6 {[%clk
0:00:27.1]} 36. g4 {[%clk 0:00:53]} 36... Qe7 {[%clk 0:00:21.4]} 37. Kh3 {[%clk
0:00:42.6]} 37... Qe5 {[%clk 0:00:17.6]} 38. Qd2 {[%clk 0:00:39.7]} 38... Qe3
{[%clk 0:00:15.6]} 39. Qb4 {[%clk 0:00:31.9]} 39... h5 {[%clk 0:00:14]} 40. Nc2
{[%clk 0:00:24.1]} 40... hxg4+ {[%clk 0:00:09.8]} 41. Qxg4 {[%clk 0:00:24.2]}
41... Qe5 {[%clk 0:00:07.1]} 42. Nd4 {[%clk 0:00:11.5]} 42... Rd1 {[%clk
0:00:05.7]} 43. Qc8+ {[%clk 0:00:05.9]} 43... Kh7 {[%clk 0:00:05.1]} 44. f4
{[%clk 0:00:02.8]} 44... Qxd4 {[%clk 0:00:04.7]} 45. f5 {[%clk 0:00:02.9]} 45...
Qd3+ {[%clk 0:00:03.6]} 46. Kg4 {[%clk 0:00:02.9]} 46... Qd4+ {[%clk 0:00:02]}
47. Kh3 {[%clk 0:00:01.7]} 47... Qf6 {[%clk 0:00:01]} 48. fxg6+ {[%clk
0:00:01.7]} 48... fxg6 {[%clk 0:00:01.5]} 49. Qg4 {[%clk 0:00:01.8]} 49... Qf5
{[%clk 0:00:01.8]} 0-1

[Event "Early-Titled-Tuesday-Blitz-March-05-2024"]
[Site "Chess.com"]
[Date "2024.03.05"]
[Round "3"]
[White "Kapitan_Bayan"]
[Black "Caracal3000"]
[Result "1/2-1/2"]
[WhiteElo "2290"]
[BlackElo "2489"]
[TimeControl "180+1"]
[EndTime "8:32:05 PST"]
[Termination "Game drawn by repetition"]

1. e4 {[%clk 0:02:57.1]} 1... c5 {[%clk 0:03:00.2]} 2. Nf3 {[%clk 0:02:57.1]}
2... d6 {[%clk 0:03:00.9]} 3. d4 {[%clk 0:02:57.5]} 3... cxd4 {[%clk 0:03:01.8]}
4. Nxd4 {[%clk 0:02:58.4]} 4... Nf6 {[%clk 0:03:02.5]} 5. f3 {[%clk 0:02:58.9]}
5... g6 {[%clk 0:03:02.4]} 6. c4 {[%clk 0:02:58.8]} 6... Bg7 {[%clk 0:03:03]} 7.
Nc3 {[%clk 0:02:59.2]} 7... O-O {[%clk 0:03:03.5]} 8. Be3 {[%clk 0:02:59.6]}
8... Nc6 {[%clk 0:03:04.2]} 9. Qd2 {[%clk 0:03:00.1]} 9... Nxd4 {[%clk 0:02:46]}
10. Bxd4 {[%clk 0:03:00]} 10... Be6 {[%clk 0:02:46.5]} 11. Be2 {[%clk
0:02:58.2]} 11... Rc8 {[%clk 0:02:42.9]} 12. b3 {[%clk 0:02:58.1]} 12... a6
{[%clk 0:02:22.7]} 13. O-O {[%clk 0:02:57.4]} 13... Bd7 {[%clk 0:02:12.4]} 14.
Rac1 {[%clk 0:02:56.3]} 14... Bc6 {[%clk 0:02:12.9]} 15. Rfd1 {[%clk 0:02:55.5]}
15... Nd7 {[%clk 0:02:09]} 16. Be3 {[%clk 0:02:51.7]} 16... Qa5 {[%clk
0:02:03.3]} 17. Nd5 {[%clk 0:02:48]} 17... Qd8 {[%clk 0:01:58.1]} 18. a4 {[%clk
0:02:43.8]} 18... Bxd5 {[%clk 0:01:42.9]} 19. cxd5 {[%clk 0:02:39]} 19... Rxc1
{[%clk 0:01:40.2]} 20. Rxc1 {[%clk 0:02:39.9]} 20... Qb8 {[%clk 0:01:40.6]} 21.
a5 {[%clk 0:02:37.2]} 21... Rc8 {[%clk 0:01:40.5]} 22. b4 {[%clk 0:02:34.3]}
22... Rc7 {[%clk 0:01:27.3]} 23. b5 {[%clk 0:02:13.6]} 23... axb5 {[%clk
0:01:13.6]} 24. Bxb5 {[%clk 0:02:12.9]} 24... Qc8 {[%clk 0:01:10.9]} 25. Bxd7
{[%clk 0:01:54.4]} 25... Qxd7 {[%clk 0:01:00]} 26. Bb6 {[%clk 0:01:52.6]} 26...
Rxc1+ {[%clk 0:00:50.4]} 27. Qxc1 {[%clk 0:01:53.5]} 27... e6 {[%clk 0:00:43.6]}
28. Qc7 {[%clk 0:01:46.2]} 28... Qxc7 {[%clk 0:00:33.6]} 29. Bxc7 {[%clk
0:01:46.1]} 29... exd5 {[%clk 0:00:26]} 30. exd5 {[%clk 0:01:45.8]} 30... Bd4+
{[%clk 0:00:25.7]} 31. Kf1 {[%clk 0:01:44.8]} 31... Bc5 {[%clk 0:00:26.5]} 32.
Ke2 {[%clk 0:01:40.2]} 32... Kf8 {[%clk 0:00:26.8]} 33. Kd3 {[%clk 0:01:37.5]}
33... Ke7 {[%clk 0:00:27.3]} 34. g4 {[%clk 0:01:23.1]} 34... h5 {[%clk
0:00:25.8]} 35. Bb6 {[%clk 0:01:15.2]} 35... Bb4 {[%clk 0:00:12.5]} 36. Kc4
{[%clk 0:01:00.3]} 36... Be1 {[%clk 0:00:12.5]} 37. Kb5 {[%clk 0:00:48.2]} 37...
hxg4 {[%clk 0:00:12.8]} 38. fxg4 {[%clk 0:00:48.2]} 38... f5 {[%clk 0:00:13.7]}
39. gxf5 {[%clk 0:00:42.9]} 39... gxf5 {[%clk 0:00:14.6]} 40. Be3 {[%clk
0:00:39.9]} 40... Bc3 {[%clk 0:00:11.2]} 41. a6 {[%clk 0:00:33.4]} 41... bxa6+
{[%clk 0:00:10.9]} 42. Kxa6 {[%clk 0:00:33.8]} 42... Kf6 {[%clk 0:00:10.5]} 43.
Kb5 {[%clk 0:00:30.6]} 43... Ke5 {[%clk 0:00:10.6]} 44. Kc6 {[%clk 0:00:30.3]}
44... Bd4 {[%clk 0:00:06.3]} 45. Bxd4+ {[%clk 0:00:26.3]} 45... Kxd4 {[%clk
0:00:07.2]} 46. Kxd6 {[%clk 0:00:25.3]} 46... f4 {[%clk 0:00:08.1]} 47. Kc6
{[%clk 0:00:23.2]} 47... f3 {[%clk 0:00:09]} 48. d6 {[%clk 0:00:23.6]} 48... f2
{[%clk 0:00:09.9]} 49. d7 {[%clk 0:00:23.9]} 49... f1=Q {[%clk 0:00:10.8]} 50.
d8=Q+ {[%clk 0:00:24.3]} 50... Ke4 {[%clk 0:00:04.5]} 51. Qd5+ {[%clk
0:00:23.4]} 51... Ke3 {[%clk 0:00:04.3]} 52. Qe5+ {[%clk 0:00:21.9]} 52... Kd2
{[%clk 0:00:03.9]} 53. Qd4+ {[%clk 0:00:21.9]} 53... Kc2 {[%clk 0:00:03.1]} 54.
Qc5+ {[%clk 0:00:20.6]} 54... Kd2 {[%clk 0:00:03]} 55. Qd4+ {[%clk 0:00:19.8]}
55... Kc2 {[%clk 0:00:03.4]} 56. Qc5+ {[%clk 0:00:19.4]} 56... Kd2 {[%clk
0:00:04]} 57. Qd5+ {[%clk 0:00:19.9]} 57... Kc2 {[%clk 0:00:04.3]} 58. Qc5+
{[%clk 0:00:18.8]} 1/2-1/2

[Event "Early-Titled-Tuesday-Blitz-March-05-2024"]
[Site "Chess.com"]
[Date "2024.03.05"]
[Round "3"]
[White "wild3000"]
[Black "PepeCuenca"]
[Result "0-1"]
[WhiteElo "2486"]
[BlackElo "2692"]
[TimeControl "180+1"]
[EndTime "8:32:09 PST"]
[Termination "PepeCuenca won on time"]

1. e4 {[%clk 0:03:00.7]} 1... c5 {[%clk 0:03:00.1]} 2. Nf3 {[%clk 0:03:00.2]}
2... Nc6 {[%clk 0:03:00.8]} 3. Bb5 {[%clk 0:02:59.9]} 3... e5 {[%clk 0:03:00.8]}
4. O-O {[%clk 0:02:57]} 4... Bd6 {[%clk 0:03:00.6]} 5. Nc3 {[%clk 0:02:49.3]}
5... Nf6 {[%clk 0:02:51.4]} 6. d3 {[%clk 0:02:49.2]} 6... a6 {[%clk 0:02:48]} 7.
Ba4 {[%clk 0:02:47.4]} 7... b5 {[%clk 0:02:47]} 8. Bb3 {[%clk 0:02:47.4]} 8...
Na5 {[%clk 0:02:43.3]} 9. Bg5 {[%clk 0:02:40.7]} 9... Nxb3 {[%clk 0:02:42.3]}
10. axb3 {[%clk 0:02:40.7]} 10... Bb7 {[%clk 0:02:42.7]} 11. Nd5 {[%clk
0:02:31.1]} 11... Bxd5 {[%clk 0:02:33.7]} 12. exd5 {[%clk 0:02:32]} 12... h6
{[%clk 0:02:32.9]} 13. Bh4 {[%clk 0:02:21.4]} 13... O-O {[%clk 0:02:12.2]} 14.
Re1 {[%clk 0:02:16.9]} 14... Re8 {[%clk 0:02:00.2]} 15. Qd2 {[%clk 0:02:07.9]}
15... Bc7 {[%clk 0:01:22.7]} 16. b4 {[%clk 0:01:52.7]} 16... cxb4 {[%clk
0:01:16.8]} 17. Qxb4 {[%clk 0:01:51.1]} 17... d6 {[%clk 0:01:10.6]} 18. c4
{[%clk 0:01:46.3]} 18... g5 {[%clk 0:00:46.2]} 19. Nxg5 {[%clk 0:01:46]} 19...
hxg5 {[%clk 0:00:12.2]} 20. Bxg5 {[%clk 0:01:46.9]} 20... Bb6 {[%clk 0:00:12.9]}
21. cxb5 {[%clk 0:01:40.7]} 21... Kg7 {[%clk 0:00:12.7]} 22. Rxa6 {[%clk
0:01:34]} 22... Rxa6 {[%clk 0:00:08.3]} 23. bxa6 {[%clk 0:01:34.9]} 23... Bd4
{[%clk 0:00:07.7]} 24. Ra1 {[%clk 0:01:16.8]} 24... Qb6 {[%clk 0:00:07.8]} 25.
Qxb6 {[%clk 0:01:08.8]} 25... Bxb6 {[%clk 0:00:07.6]} 26. Bxf6+ {[%clk
0:00:57.6]} 26... Kxf6 {[%clk 0:00:07.9]} 27. Rc1 {[%clk 0:00:48.7]} 27... Ra8
{[%clk 0:00:06.2]} 28. Rc6 {[%clk 0:00:48.7]} 28... Bc5 {[%clk 0:00:05.2]} 29.
g3 {[%clk 0:00:45.3]} 29... Ke7 {[%clk 0:00:05]} 30. h4 {[%clk 0:00:44.2]} 30...
Kd7 {[%clk 0:00:04.7]} 31. Kg2 {[%clk 0:00:43.3]} 31... Rb8 {[%clk 0:00:04.4]}
32. h5 {[%clk 0:00:40.7]} 32... Rxb2 {[%clk 0:00:04.7]} 33. h6 {[%clk
0:00:39.7]} 33... Rxf2+ {[%clk 0:00:04.9]} 34. Kh3 {[%clk 0:00:39.5]} 34... Rf6
{[%clk 0:00:05.5]} 35. h7 {[%clk 0:00:39.1]} 35... Rh6+ {[%clk 0:00:05.5]} 36.
Kg4 {[%clk 0:00:39.2]} 36... Rxh7 {[%clk 0:00:06.4]} 37. Kf5 {[%clk 0:00:40]}
37... Rg7 {[%clk 0:00:05.5]} 38. g4 {[%clk 0:00:39.8]} 38... f6 {[%clk
0:00:05.5]} 39. Kxf6 {[%clk 0:00:20.4]} 39... Rxg4 {[%clk 0:00:05.3]} 40. Kf7
{[%clk 0:00:21.3]} 40... Ra4 {[%clk 0:00:05.2]} 41. Kf6 {[%clk 0:00:18.6]} 41...
Ra3 {[%clk 0:00:05.1]} 42. Kf5 {[%clk 0:00:16.9]} 42... Rxd3 {[%clk 0:00:05.2]}
43. Ke4 {[%clk 0:00:17.8]} 43... Ra3 {[%clk 0:00:05.3]} 44. Kf5 {[%clk
0:00:17.6]} 44... Ra4 {[%clk 0:00:04.6]} 45. Kg5 {[%clk 0:00:16.2]} 45... Rd4
{[%clk 0:00:04.9]} 46. Kf5 {[%clk 0:00:14.1]} 46... Rxd5 {[%clk 0:00:04.4]} 47.
Rxc5 {[%clk 0:00:12.3]} 47... Rxc5 {[%clk 0:00:04.7]} 48. a7 {[%clk 0:00:12.7]}
48... Ra5 {[%clk 0:00:05]} 49. Ke4 {[%clk 0:00:13.6]} 49... Rxa7 {[%clk
0:00:05.3]} 50. Kd5 {[%clk 0:00:14.5]} 50... Ra5+ {[%clk 0:00:05.6]} 51. Kc4
{[%clk 0:00:14.9]} 51... Kc6 {[%clk 0:00:05.9]} 52. Kb4 {[%clk 0:00:15.8]} 52...
Rc5 {[%clk 0:00:06.3]} 0-1

[Event "Early-Titled-Tuesday-Blitz-March-05-2024"]
[Site "Chess.com"]
[Date "2024.03.05"]
[Round "3"]
[White "Dinosaurio_1975"]
[Black "effefe"]
[Result "1-0"]
[WhiteElo "2586"]
[BlackElo "2416"]
[TimeControl "180+1"]
[EndTime "8:32:10 PST"]
[Termination "Dinosaurio_1975 won on time"]

1. e4 {[%clk 0:02:54.3]} 1... c5 {[%clk 0:02:59.6]} 2. Nf3 {[%clk 0:02:53.6]}
2... d6 {[%clk 0:03:00.2]} 3. Bb5+ {[%clk 0:02:52.1]} 3... Nd7 {[%clk
0:02:59.9]} 4. Ba4 {[%clk 0:02:49.8]} 4... Rb8 {[%clk 0:02:56.2]} 5. c4 {[%clk
0:02:48.4]} 5... g6 {[%clk 0:02:55.3]} 6. Nc3 {[%clk 0:02:46.8]} 6... Bg7 {[%clk
0:02:55.7]} 7. d4 {[%clk 0:02:47.1]} 7... cxd4 {[%clk 0:02:52.8]} 8. Nxd4 {[%clk
0:02:48]} 8... Nf6 {[%clk 0:02:53.1]} 9. O-O {[%clk 0:02:47.8]} 9... O-O {[%clk
0:02:52.9]} 10. Bxd7 {[%clk 0:02:47]} 10... Bxd7 {[%clk 0:02:44]} 11. Qd3 {[%clk
0:02:39.6]} 11... Ng4 {[%clk 0:02:26.2]} 12. b3 {[%clk 0:02:25.6]} 12... a6
{[%clk 0:02:13.4]} 13. Bb2 {[%clk 0:02:24]} 13... b5 {[%clk 0:02:08.8]} 14. cxb5
{[%clk 0:02:17.8]} 14... axb5 {[%clk 0:02:06]} 15. Rfd1 {[%clk 0:01:59.5]} 15...
e6 {[%clk 0:01:23.3]} 16. Rd2 {[%clk 0:01:52.7]} 16... Qb6 {[%clk 0:00:50.6]}
17. h3 {[%clk 0:01:35]} 17... Ne5 {[%clk 0:00:40.8]} 18. Qe3 {[%clk 0:01:24.8]}
18... b4 {[%clk 0:00:36.5]} 19. Nce2 {[%clk 0:01:22.2]} 19... Rfd8 {[%clk
0:00:30]} 20. Rad1 {[%clk 0:01:14.8]} 20... Rbc8 {[%clk 0:00:15.1]} 21. f4
{[%clk 0:01:04.2]} 21... Nc6 {[%clk 0:00:12.2]} 22. Kf2 {[%clk 0:01:04.8]} 22...
Nxd4 {[%clk 0:00:10.1]} 23. Bxd4 {[%clk 0:01:01.5]} 23... Bxd4 {[%clk
0:00:09.4]} 24. Qxd4 {[%clk 0:01:02.4]} 24... Qc6 {[%clk 0:00:01.3]} 25. Qxd6
{[%clk 0:00:59]} 25... Qxe4 {[%clk 0:00:01.2]} 26. Qe7 {[%clk 0:00:46.3]} 26...
Qb7 {[%clk 0:00:01.8]} 27. Rxd7 {[%clk 0:00:45.5]} 27... Rxd7 {[%clk 0:00:01.9]}
28. Qxd7 {[%clk 0:00:46]} 28... Qb6+ {[%clk 0:00:02.3]} 29. Qd4 {[%clk
0:00:46.1]} 29... Qb7 {[%clk 0:00:02]} 30. Kg1 {[%clk 0:00:42.9]} 30... Rc2
{[%clk 0:00:02.3]} 31. Qd8+ {[%clk 0:00:42.1]} 31... Kg7 {[%clk 0:00:02.8]} 32.
Qd4+ {[%clk 0:00:43]} 32... Kg8 {[%clk 0:00:02.9]} 33. Rd2 {[%clk 0:00:42.9]}
33... Rc8 {[%clk 0:00:02.2]} 34. Kh2 {[%clk 0:00:41.6]} 34... h5 {[%clk
0:00:02.4]} 35. Ng3 {[%clk 0:00:37.7]} 35... Rc1 {[%clk 0:00:02.1]} 36. Ne4
{[%clk 0:00:36.4]} 36... Rc8 {[%clk 0:00:01.9]} 37. Nf6+ {[%clk 0:00:36.4]}
37... Kf8 {[%clk 0:00:02.5]} 38. Nd7+ {[%clk 0:00:17.3]} 38... Kg8 {[%clk
0:00:02.2]} 39. Nc5 {[%clk 0:00:17.9]} 39... Qc6 {[%clk 0:00:01.7]} 40. Ne4
{[%clk 0:00:16.3]} 40... Kf8 {[%clk 0:00:01.5]} 41. Qxb4+ {[%clk 0:00:14.5]}
41... Kg7 {[%clk 0:00:01.4]} 42. Qd4+ {[%clk 0:00:15]} 42... Kf8 {[%clk
0:00:01.9]} 43. a4 {[%clk 0:00:15.3]} 43... Ra8 {[%clk 0:00:01.4]} 44. Ng5
{[%clk 0:00:11.3]} 44... Ke7 {[%clk 0:00:01.4]} 45. Qb4+ {[%clk 0:00:10.4]}
45... Kf6 {[%clk 0:00:01.2]} 46. Qd4+ {[%clk 0:00:09.8]} 46... Ke7 {[%clk
0:00:01.7]} 47. Qg7 {[%clk 0:00:10.4]} 47... Rf8 {[%clk 0:00:01.1]} 48. a5
{[%clk 0:00:09.8]} 48... Qc7 {[%clk 0:00:01.7]} 49. Qe5 {[%clk 0:00:09]} 49...
Qb7 {[%clk 0:00:01.8]} 50. Qc5+ {[%clk 0:00:09]} 50... Kf6 {[%clk 0:00:01.9]}
51. Nh7+ {[%clk 0:00:08.7]} 51... Kg7 {[%clk 0:00:02.2]} 52. Nxf8 {[%clk
0:00:08.6]} 52... Qa6 {[%clk 0:00:01.4]} 53. Rd7 {[%clk 0:00:08.3]} 53... Qf1
{[%clk 0:00:01.7]} 54. Qe5+ {[%clk 0:00:08.4]} 54... Kh6 {[%clk 0:00:01.9]} 55.
Rxf7 {[%clk 0:00:07]} 1-0

[Event "Early-Titled-Tuesday-Blitz-March-05-2024"]
[Site "Chess.com"]
[Date "2024.03.05"]
[Round "3"]
[White "david_gomez"]
[Black "DarZay"]
[Result "0-1"]
[WhiteElo "2615"]
[BlackElo "2321"]
[TimeControl "180+1"]
[EndTime "8:32:14 PST"]
[Termination "DarZay won by resignation"]

1. e4 {[%clk 0:03:00.9]} 1... c5 {[%clk 0:02:56.3]} 2. Nf3 {[%clk 0:03:00.3]}
2... Nc6 {[%clk 0:02:56]} 3. Bb5 {[%clk 0:02:59.3]} 3... g6 {[%clk 0:02:55.7]}
4. Bxc6 {[%clk 0:02:59.1]} 4... dxc6 {[%clk 0:02:54.9]} 5. d3 {[%clk 0:02:59.2]}
5... Bg7 {[%clk 0:02:53.2]} 6. h3 {[%clk 0:02:59]} 6... e5 {[%clk 0:02:52.4]} 7.
Be3 {[%clk 0:02:56.7]} 7... b6 {[%clk 0:02:52.1]} 8. a3 {[%clk 0:02:50.6]} 8...
Qd6 {[%clk 0:02:51.6]} 9. Nbd2 {[%clk 0:02:50]} 9... Be6 {[%clk 0:02:50.6]} 10.
Nc4 {[%clk 0:02:44]} 10... Bxc4 {[%clk 0:02:50]} 11. dxc4 {[%clk 0:02:44.9]}
11... Rd8 {[%clk 0:02:43.4]} 12. Qxd6 {[%clk 0:02:44.3]} 12... Rxd6 {[%clk
0:02:42.9]} 13. Ke2 {[%clk 0:02:45.2]} 13... Kd7 {[%clk 0:02:30]} 14. Rhd1
{[%clk 0:02:44.4]} 14... Ne7 {[%clk 0:02:30.1]} 15. Rxd6+ {[%clk 0:02:44.1]}
15... Kxd6 {[%clk 0:02:30.5]} 16. b4 {[%clk 0:02:44.5]} 16... cxb4 {[%clk
0:02:27.8]} 17. axb4 {[%clk 0:02:45.4]} 17... Nc8 {[%clk 0:02:24.6]} 18. c5+
{[%clk 0:02:43.2]} 18... Kc7 {[%clk 0:02:20.1]} 19. Ng5 {[%clk 0:02:42]} 19...
bxc5 {[%clk 0:01:54.7]} 20. Bxc5 {[%clk 0:02:41.4]} 20... Bf6 {[%clk 0:01:43.7]}
21. Nxf7 {[%clk 0:02:36.6]} 21... Re8 {[%clk 0:01:42.6]} 22. Nh6 {[%clk
0:02:30.8]} 22... Kb7 {[%clk 0:01:42.1]} 23. Ng4 {[%clk 0:02:29]} 23... Bg7
{[%clk 0:01:41.4]} 24. Ne3 {[%clk 0:02:28.8]} 24... Nb6 {[%clk 0:01:41.2]} 25.
Rd1 {[%clk 0:02:18.9]} 25... Bh6 {[%clk 0:01:39.5]} 26. Ng4 {[%clk 0:02:18]}
26... Bg5 {[%clk 0:01:37.2]} 27. Bxb6 {[%clk 0:02:07.1]} 27... Kxb6 {[%clk
0:01:36.2]} 28. c4 {[%clk 0:02:06.6]} 28... Be7 {[%clk 0:01:30]} 29. c5+ {[%clk
0:01:54.8]} 29... Kb5 {[%clk 0:01:30.4]} 30. Nxe5 {[%clk 0:01:55.4]} 30... Bxc5
{[%clk 0:01:29.7]} 31. Nd3 {[%clk 0:01:45.2]} 31... Bxb4 {[%clk 0:01:21.7]} 32.
e5 {[%clk 0:01:43.4]} 32... c5 {[%clk 0:01:20.1]} 33. f4 {[%clk 0:01:36.9]}
33... a5 {[%clk 0:01:16]} 34. Nb2 {[%clk 0:01:24.1]} 34... a4 {[%clk 0:01:14.1]}
35. Kd3 {[%clk 0:01:16.6]} 35... a3 {[%clk 0:00:53.2]} 36. Nc4 {[%clk
0:01:15.8]} 36... Rd8+ {[%clk 0:00:48.8]} 37. Nd6+ {[%clk 0:01:16.2]} 37... Ka4
{[%clk 0:00:45.2]} 38. Kc4 {[%clk 0:00:54.8]} 38... a2 {[%clk 0:00:41.3]} 39. g4
{[%clk 0:00:28.4]} 39... Rf8 {[%clk 0:00:37.3]} 40. f5 {[%clk 0:00:26.6]} 40...
gxf5 {[%clk 0:00:37.6]} 41. gxf5 {[%clk 0:00:27.1]} 41... Ka3 {[%clk 0:00:34.5]}
42. e6 {[%clk 0:00:26.1]} 42... Rd8 {[%clk 0:00:14.2]} 43. f6 {[%clk 0:00:17.5]}
43... Kb2 {[%clk 0:00:11.5]} 44. Ra1 {[%clk 0:00:05.2]} 44... Kxa1 {[%clk
0:00:07.3]} 45. e7 {[%clk 0:00:05.8]} 45... Rxd6 {[%clk 0:00:06.6]} 46. e8=Q
{[%clk 0:00:06.2]} 46... Rd4+ {[%clk 0:00:06.6]} 47. Kb3 {[%clk 0:00:06.3]}
47... Rd3+ {[%clk 0:00:06.7]} 48. Kc4 {[%clk 0:00:05.1]} 48... Rc3+ {[%clk
0:00:06.9]} 49. Kb5 {[%clk 0:00:05.6]} 49... Kb2 {[%clk 0:00:06.6]} 50. Qe2+
{[%clk 0:00:05.6]} 50... Rc2 {[%clk 0:00:06.7]} 51. Qe5+ {[%clk 0:00:05]} 51...
Bc3 {[%clk 0:00:06.9]} 52. Qb8 {[%clk 0:00:04.5]} 52... a1=Q {[%clk 0:00:06.4]}
53. Kc4+ {[%clk 0:00:05.1]} 53... Kc1 {[%clk 0:00:06.4]} 54. Qf4+ {[%clk
0:00:05.7]} 54... Bd2+ {[%clk 0:00:05.7]} 0-1

[Event "Early-Titled-Tuesday-Blitz-March-05-2024"]
[Site "Chess.com"]
[Date "2024.03.05"]
[Round "3"]
[White "AsselLesbekova"]
[Black "Lady_Nika"]
[Result "0-1"]
[WhiteElo "2289"]
[BlackElo "2559"]
[TimeControl "180+1"]
[EndTime "8:32:14 PST"]
[Termination "Lady_Nika won by checkmate"]

1. e4 {[%clk 0:03:00.9]} 1... b6 {[%clk 0:02:54.6]} 2. Nc3 {[%clk 0:02:59]} 2...
Bb7 {[%clk 0:02:55]} 3. g3 {[%clk 0:02:58.4]} 3... Nf6 {[%clk 0:02:55]} 4. Bg2
{[%clk 0:02:58.8]} 4... e6 {[%clk 0:02:55.3]} 5. Nge2 {[%clk 0:02:59.1]} 5... d5
{[%clk 0:02:55.7]} 6. exd5 {[%clk 0:02:59.2]} 6... exd5 {[%clk 0:02:55.7]} 7.
O-O {[%clk 0:02:58.7]} 7... Bd6 {[%clk 0:02:54.8]} 8. Re1 {[%clk 0:02:57.6]}
8... O-O {[%clk 0:02:54.6]} 9. d4 {[%clk 0:02:57.6]} 9... a6 {[%clk 0:02:49.7]}
10. Bf4 {[%clk 0:02:56.3]} 10... Bb4 {[%clk 0:02:36.7]} 11. a3 {[%clk
0:02:51.2]} 11... Be7 {[%clk 0:02:34.5]} 12. Qd3 {[%clk 0:02:44.4]} 12... Nbd7
{[%clk 0:02:27.9]} 13. Be5 {[%clk 0:02:25.7]} 13... Re8 {[%clk 0:02:15.5]} 14.
Nf4 {[%clk 0:02:22]} 14... c6 {[%clk 0:02:08.5]} 15. Qf3 {[%clk 0:01:59.7]}
15... Nf8 {[%clk 0:02:04]} 16. Nh5 {[%clk 0:01:52.7]} 16... Nxh5 {[%clk
0:02:01.5]} 17. Qxh5 {[%clk 0:01:53.6]} 17... Bf6 {[%clk 0:01:57.7]} 18. Bxf6
{[%clk 0:01:49.3]} 18... Qxf6 {[%clk 0:01:57.6]} 19. Qh4 {[%clk 0:01:22.3]}
19... Qxh4 {[%clk 0:01:53.6]} 20. gxh4 {[%clk 0:01:23.2]} 20... Ng6 {[%clk
0:01:53.7]} 21. Na4 {[%clk 0:01:16.6]} 21... Nxh4 {[%clk 0:01:31.7]} 22. Nxb6
{[%clk 0:01:13.2]} 22... Rad8 {[%clk 0:01:22.7]} 23. Nd7 {[%clk 0:00:56.2]}
23... h6 {[%clk 0:01:03.5]} 24. Ne5 {[%clk 0:00:47.8]} 24... f6 {[%clk
0:01:01.5]} 25. Nd3 {[%clk 0:00:47.3]} 25... Bc8 {[%clk 0:00:54.3]} 26. Rxe8+
{[%clk 0:00:41.2]} 26... Rxe8 {[%clk 0:00:54]} 27. Re1 {[%clk 0:00:41.7]} 27...
Rxe1+ {[%clk 0:00:52.9]} 28. Nxe1 {[%clk 0:00:42.6]} 28... Bf5 {[%clk
0:00:49.5]} 29. Bf1 {[%clk 0:00:32.9]} 29... a5 {[%clk 0:00:43.2]} 30. f3 {[%clk
0:00:33.1]} 30... g5 {[%clk 0:00:40.5]} 31. Kf2 {[%clk 0:00:33.5]} 31... Kf7
{[%clk 0:00:35.3]} 32. Bd3 {[%clk 0:00:34]} 32... Ke6 {[%clk 0:00:30.8]} 33.
Bxf5+ {[%clk 0:00:31.1]} 33... Nxf5 {[%clk 0:00:30.6]} 34. c3 {[%clk 0:00:28.4]}
34... Nd6 {[%clk 0:00:30.6]} 35. b4 {[%clk 0:00:25.3]} 35... axb4 {[%clk
0:00:29.8]} 36. cxb4 {[%clk 0:00:24.8]} 36... Nb5 {[%clk 0:00:28.1]} 37. Nc2
{[%clk 0:00:25.2]} 37... Kd6 {[%clk 0:00:21.7]} 38. f4 {[%clk 0:00:18.3]} 38...
Nc3 {[%clk 0:00:15.7]} 39. fxg5 {[%clk 0:00:15.2]} 39... hxg5 {[%clk 0:00:14.9]}
40. Kf3 {[%clk 0:00:13.1]} 40... f5 {[%clk 0:00:15]} 41. Ne3 {[%clk 0:00:11.5]}
41... Ke6 {[%clk 0:00:13.1]} 42. Nc2 {[%clk 0:00:11.7]} 42... g4+ {[%clk
0:00:06.6]} 43. Ke3 {[%clk 0:00:10.7]} 43... Kf6 {[%clk 0:00:04.7]} 44. Kd3
{[%clk 0:00:10.5]} 44... Na4 {[%clk 0:00:05]} 45. Ne1 {[%clk 0:00:09]} 45... f4
{[%clk 0:00:05.1]} 46. Ke2 {[%clk 0:00:06.2]} 46... Kf5 {[%clk 0:00:05.3]} 47.
Nd3 {[%clk 0:00:06]} 47... Ke4 {[%clk 0:00:05.4]} 48. Nc5+ {[%clk 0:00:05.7]}
48... Nxc5 {[%clk 0:00:05.8]} 49. dxc5 {[%clk 0:00:05.1]} 49... d4 {[%clk
0:00:05.7]} 50. a4 {[%clk 0:00:04]} 50... d3+ {[%clk 0:00:05.5]} 51. Kd2 {[%clk
0:00:04]} 51... f3 {[%clk 0:00:06]} 52. a5 {[%clk 0:00:04.2]} 52... f2 {[%clk
0:00:06.1]} 53. a6 {[%clk 0:00:04.5]} 53... f1=Q {[%clk 0:00:06.5]} 54. a7
{[%clk 0:00:05.2]} 54... Qe2+ {[%clk 0:00:06.7]} 55. Kc3 {[%clk 0:00:05.6]}
55... Qc2# {[%clk 0:00:06.7]} 0-1